bitfinex/quotes_BTCUSD_20220207
["timestamp","ask_amount","ask_price","bid_price","bid_amount"]
[1644250499929,0.04381534,43749.0,43748.0,0.278689]
[1644250500127,0.3404975,43749.0,43748.0,0.114348]
[1644250500330,0.50959971,43749.0,43746.0,0.23]
[1644250500528,0.36578437,43748.0,43746.0,0.23]
[1644250500729,0.36578437,43747.0,43746.0,0.23]
[1644250500929,0.67174943,43747.0,43746.0,0.23]
[1644250501134,1.00518365,43747.0,43746.0,0.23]
[1644250501329,0.90518365,43747.0,43746.0,0.23]
[1644250501531,1.06210083,43747.0,43746.0,0.23]
[1644250502331,1.34530978,43747.0,43746.0,0.23]
[1644250502533,1.06210083,43747.0,43746.0,0.23]
[1644250504379,1.06210083,43747.0,43746.0,0.18472742]
[1644250504380,1.34351585,43747.0,43746.0,0.18472742]
[1644250504579,1.12767675,43747.0,43746.0,0.18472742]
[1644250504981,0.8,43746.0,43739.0,0.05]
[1644250505182,0.8,43746.0,43732.0,0.42]
[1644250505184,0.25533261,43734.0,43732.0,0.42]
[1644250505380,0.25533261,43734.0,43732.0,0.47]
[1644250505381,0.04381534,43733.0,43732.0,0.47]
[1644250507028,0.03448416,43733.0,43732.0,0.47]
[1644250507227,0.03448416,43733.0,43732.0,0.527201]
[1644250508229,0.02948416,43733.0,43732.0,0.527201]
[1644250509034,0.32948416,43733.0,43732.0,0.20929585]
[1644250509233,0.32948416,43733.0,43732.0,0.30419037]
[1644250509431,0.32344286,43733.0,43732.0,0.30419037]
[1644250509631,0.02948416,43733.0,43732.0,0.30419037]
[1644250511274,0.32052893,43733.0,43732.0,0.30419037]
[1644250511478,0.02948416,43733.0,43732.0,0.30419037]
[1644250511975,0.02948416,43733.0,43732.0,0.66907077]
[1644250512175,0.02948416,43733.0,43732.0,0.67844937]
[1644250513176,0.07602674,43737.0,43733.0,0.057196]
[1644250513377,0.07602674,43737.0,43733.0,0.114392]
[1644250513577,0.02948416,43734.0,43733.0,0.114392]
[1644250513777,0.07602674,43737.0,43733.0,0.381455]
[1644250513981,0.01883174,43737.0,43736.0,0.05]
[1644250514434,0.01883174,43737.0,43736.0,0.52635385]
[1644250514626,0.02039867,43738.0,43736.0,0.67844937]
[1644250514826,0.02039867,43738.0,43737.0,0.324259]
[1644250515028,0.02039867,43738.0,43737.0,0.59620205]
[1644250515828,0.02039867,43738.0,43737.0,0.64620205]
[1644250516128,0.02039867,43738.0,43737.0,0.59620205]
[1644250516731,0.0756623,43742.0,43738.0,0.057191]
[1644250517129,0.0756623,43742.0,43737.0,0.24351605]
[1644250517328,0.0756623,43742.0,43737.0,0.47351605]
[1644250518176,0.0756623,43742.0,43737.0,0.47423348]
[1644250518578,0.057191,43742.0,43737.0,0.47423348]
[1644250518778,0.057191,43742.0,43738.0,0.32593222]
[1644250519181,0.30969536,43741.0,43737.0,0.308764]
[1644250519387,0.30969536,43741.0,43738.0,0.00071742]
[1644250519388,0.70248451,43741.0,43738.0,0.00071742]
[1644250519581,0.324259,43739.0,43738.0,0.00071742]
[1644250519880,0.48146,43739.0,43738.0,0.15281294]
[1644250520281,0.48146,43739.0,43738.0,0.15209552]
[1644250520881,0.8,43738.0,43737.0,0.23]
[1644250521082,1.124259,43738.0,43737.0,0.23]
[1644250521281,1.28118447,43738.0,43737.0,0.23]
[1644250524429,1.42328447,43738.0,43737.0,0.23]
[1644250524730,1.76604456,43738.0,43737.0,0.31951563]
[1644250525029,1.42328447,43738.0,43737.0,0.31951563]
[1644250525431,0.81706498,43738.0,43737.0,0.31951563]
[1644250525676,0.52328447,43738.0,43737.0,0.31951563]
[1644250525875,0.366359,43738.0,43737.0,0.31951563]
[1644250526076,0.366359,43738.0,43737.0,0.30951563]
[1644250526276,0.324259,43738.0,43737.0,0.30951563]
[1644250527779,0.70397913,43738.0,43737.0,0.30951563]
[1644250528178,0.8609046,43738.0,43737.0,0.30951563]
[1644250528380,0.70397913,43738.0,43737.0,0.30951563]
[1644250528580,0.8609046,43738.0,43737.0,0.30951563]
[1644250528980,0.7609046,43738.0,43737.0,0.30951563]
[1644250529180,0.8609046,43738.0,43737.0,0.30951563]
[1644250530040,0.58118447,43738.0,43737.0,0.30951563]
[1644250530240,0.324259,43738.0,43737.0,0.30951563]
[1644250530643,0.15692547,43740.0,43737.0,0.30951563]
[1644250530842,0.02172347,43741.0,43739.0,0.05]
[1644250531445,0.02172347,43741.0,43740.0,0.24644015]
[1644250531743,0.02172347,43741.0,43740.0,0.05]
[1644250532343,0.02172347,43741.0,43739.0,0.20209485]
[1644250532743,0.057185,43742.0,43739.0,0.20209485]
[1644250532944,0.057185,43742.0,43739.0,0.20928385]
[1644250533180,0.057185,43742.0,43739.0,0.25928385]
[1644250534584,0.09936046,43745.0,43739.0,0.25928385]
[1644250534782,0.0789795,43745.0,43739.0,0.25928385]
[1644250534981,0.0789795,43745.0,43744.0,0.22100471]
[1644250534982,0.4033485,43745.0,43744.0,0.22100471]
[1644250535380,0.0789795,43745.0,43744.0,0.22100471]
[1644250535782,0.0217965,43745.0,43744.0,0.22100471]
[1644250535982,0.0217965,43745.0,43744.0,0.27100471]
[1644250536382,0.0217965,43745.0,43744.0,0.59537371]
[1644250536782,0.0217965,43745.0,43744.0,0.74746856]
[1644250537031,0.0217965,43745.0,43744.0,1.0480404]
[1644250537430,0.02148044,43749.0,43744.0,1.1052114]
[1644250537630,0.02148044,43749.0,43747.0,0.107171]
[1644250537831,0.02148044,43749.0,43748.0,0.19387722]
[1644250538431,0.02148044,43749.0,43748.0,0.24387722]
[1644250538831,0.00028778,43752.0,43751.0,0.24800538]
[1644250539036,0.02171283,43753.0,43751.0,0.35517364]
[1644250539239,0.02171283,43753.0,43752.0,0.05]
[1644250539240,0.02142505,43753.0,43752.0,0.05]
[1644250539632,0.02079307,43753.0,43752.0,0.05]
[1644250539835,0.02079307,43753.0,43752.0,0.374369]
[1644250540779,0.00028778,43756.0,43752.0,0.107166]
[1644250540978,0.13324521,43757.0,43755.0,0.05]
[1644250541179,0.32465678,43756.0,43755.0,0.05]
[1644250541479,0.324369,43756.0,43755.0,0.05]
[1644250542078,0.324369,43756.0,43755.0,0.20209485]
[1644250542079,0.381533,43756.0,43755.0,0.20209485]
[1644250542279,0.381533,43756.0,43755.0,0.30926085]
[1644250542482,0.057164,43756.0,43755.0,0.30926085]
[1644250542679,0.01891621,43757.0,43755.0,0.20926085]
[1644250542878,0.34328521,43757.0,43755.0,0.20926085]
[1644250543280,0.324369,43757.0,43755.0,0.20926085]
[1644250544080,0.4387,43757.0,43755.0,0.20926085]
[1644250544530,0.324369,43757.0,43755.0,0.20926085]
[1644250545139,0.05779701,43758.0,43755.0,0.20926085]
[1644250545329,0.324369,43757.0,43755.0,0.20926085]
[1644250545529,0.05779701,43758.0,43755.0,0.2664242]
[1644250545729,0.00028778,43759.0,43758.0,0.26009278]
[1644250546030,0.324369,43759.0,43758.0,0.26009278]
[1644250546827,0.01828499,43763.0,43759.0,0.05716]
[1644250546828,0.324369,43762.0,43759.0,0.05716]
[1644250547029,0.00059103,43761.0,43759.0,0.05716]
[1644250547228,0.05775403,43761.0,43759.0,0.10716]
[1644250547429,0.15692547,43765.0,43760.0,0.05]
[1644250547632,0.15692547,43765.0,43764.0,0.26104009]
[1644250547831,0.09860457,43769.0,43764.0,0.31104009]
[1644250548308,0.09860457,43769.0,43768.0,0.05]
[1644250548507,0.09860457,43769.0,43765.0,0.21812712]
[1644250548508,0.42297357,43769.0,43765.0,0.21812712]
[1644250548709,0.09360457,43769.0,43765.0,0.21812712]
[1644250548910,0.08323063,43773.0,43765.0,0.38956071]
[1644250549108,0.09710457,43769.0,43767.0,0.157142]
[1644250549308,0.1803352,43773.0,43767.0,0.157142]
[1644250549708,0.34245403,43770.0,43767.0,0.08494109]
[1644250549907,0.4395586,43770.0,43767.0,0.08494109]
[1644250550512,0.09710457,43770.0,43767.0,0.057142]
[1644250550910,0.09710457,43770.0,43769.0,6.803e-05]
[1644250552746,0.09710457,43770.0,43769.0,0.15216288]
[1644250553345,0.42147357,43770.0,43769.0,0.15216288]
[1644250553748,0.92085307,43770.0,43769.0,0.15216288]
[1644250554554,0.92085307,43770.0,43769.0,0.15016288]
[1644250554555,0.97900507,43770.0,43769.0,0.15016288]
[1644250554747,0.73655104,43770.0,43769.0,0.15016288]
[1644250555379,0.02099029,43778.0,43769.0,0.15016288]
[1644250555380,0.40643671,43790.0,43772.0,0.8]
[1644250555552,0.12708838,43828.0,43789.0,1.21074412]
[1644250555556,0.43993882,43801.0,43789.0,1.21074412]
[1644250555814,0.03494695,43837.0,43801.0,0.374255]
[1644250555815,0.5,43827.0,43801.0,0.374255]
[1644250556012,0.50869011,43829.0,43802.0,3.80014076]
[1644250556013,0.01259971,43804.0,43802.0,3.80014076]
[1644250556209,0.02,43829.0,43828.0,0.5723]
[1644250556407,0.48869011,43841.0,43828.0,1.95173305]
[1644250556607,0.02,43849.0,43838.0,1.33304412]
[1644250556808,0.02,43849.0,43847.0,0.5723]
[1644250557009,0.01,43849.0,43848.0,0.36561243]
[1644250557205,0.12456249,43871.0,43849.0,0.8]
[1644250557206,0.27353351,43863.0,43849.0,0.8]
[1644250557406,0.05,43877.0,43850.0,0.0458]
[1644250557606,0.05,43877.0,43853.0,0.05]
[1644250557804,0.05,43877.0,43855.0,0.22096]
[1644250558004,0.5655,43895.0,43857.0,0.5]
[1644250558005,0.05,43865.0,43857.0,0.5]
[1644250558205,0.05,43865.0,43858.0,0.323854]
[1644250558206,0.015,43859.0,43858.0,0.323854]
[1644250558410,0.78584567,43859.0,43858.0,0.369654]
[1644250558611,0.08427945,43846.0,43826.0,0.171103]
[1644250558809,0.08427945,43846.0,43838.0,0.76074412]
[1644250559007,0.05,43847.0,43839.0,0.0458]
[1644250559206,0.8,43855.0,43826.0,0.171103]
[1644250559207,0.05,43843.0,43829.0,0.05703828]
[1644250559453,0.32925168,43833.0,43825.0,0.21333684]
[1644250559637,0.00062076,43843.0,43826.0,0.323835]
[1644250559638,0.05,43841.0,43826.0,0.323835]
[1644250559836,0.05,43833.0,43819.0,0.02587343]
[1644250560036,0.0458,43838.0,43833.0,0.00077149]
[1644250560237,0.31628723,43837.0,43833.0,0.00077149]
[1644250560439,0.06416911,43834.0,43833.0,0.00077149]
[1644250560638,0.97911459,43834.0,43833.0,1.49e-06]
[1644250560838,0.97911459,43834.0,43815.0,0.0201704]
[1644250560839,1.42423931,43834.0,43815.0,0.0201704]
[1644250561039,0.37312878,43816.0,43815.0,0.0201704]
[1644250561239,0.0458,43816.0,43815.0,0.0201704]
[1644250561441,0.04922678,43825.0,43815.0,0.0201704]
[1644250561637,0.02182588,43833.0,43815.0,0.0201704]
[1644250561638,0.0001863,43827.0,43815.0,0.27550156]
[1644250561839,0.0001863,43827.0,43820.0,0.24]
[1644250561840,0.05,43825.0,43820.0,0.24]
[1644250562037,0.04922678,43821.0,43815.0,0.0201704]
[1644250562238,0.0458,43824.0,43815.0,0.0201704]
[1644250562439,0.0958,43824.0,43815.0,0.0201704]
[1644250562639,0.0958,43824.0,43815.0,0.03965954]
[1644250562838,0.25442063,43821.0,43815.0,0.01948914]
[1644250563038,0.49713163,43821.0,43815.0,0.01948914]
[1644250563287,0.3458,43820.0,43815.0,0.01948914]
[1644250563492,0.323902,43819.0,43815.0,0.01948914]
[1644250563697,0.05,43817.0,43815.0,0.01948914]
[1644250563887,1.148602,43816.0,43815.0,0.01948914]
[1644250564087,1.190602,43816.0,43815.0,0.01948914]
[1644250564287,1.52787796,43816.0,43815.0,0.01948914]
[1644250564488,0.940602,43816.0,43815.0,0.01948914]
[1644250564689,0.6167,43816.0,43815.0,0.01948914]
[1644250564887,0.6167,43816.0,43812.0,0.0022]
[1644250565288,0.323902,43815.0,43812.0,0.0022]
[1644250565487,0.042,43814.0,43812.0,0.0022]
[1644250565688,0.323902,43813.0,43812.0,0.0022]
[1644250565887,0.042,43813.0,43812.0,0.0022]
[1644250566089,0.042,43813.0,43812.0,0.0014289]
[1644250566488,0.05,43814.0,43813.0,0.06504574]
[1644250567042,0.75803002,43814.0,43813.0,0.06504574]
[1644250567441,0.99281296,43814.0,43813.0,0.06504574]
[1644250567639,0.98781296,43814.0,43813.0,0.06504574]
[1644250567938,1.32343922,43814.0,43813.0,0.06504574]
[1644250568139,1.32793685,43814.0,43813.0,0.06504574]
[1644250568339,1.23293685,43814.0,43813.0,0.06504574]
[1644250568947,0.8,43813.0,43804.0,0.02110054]
[1644250569141,0.365902,43812.0,43804.0,0.02110054]
[1644250569342,0.323902,43810.0,43804.0,0.02110054]
[1644250569540,0.323902,43808.0,43804.0,0.02110054]
[1644250569739,0.61622055,43806.0,43804.0,0.02110054]
[1644250569940,0.8730221,43805.0,43804.0,0.02110054]
[1644250570143,0.66905576,43805.0,43804.0,0.02110054]
[1644250570541,0.19671702,43805.0,43804.0,0.02110054]
[1644250570991,0.323902,43804.0,43801.0,0.02]
[1644250571189,0.042,43803.0,43801.0,0.02]
[1644250571387,0.54487993,43802.0,43801.0,0.02]
[1644250571688,0.58687993,43802.0,43801.0,0.015]
[1644250571885,0.4,43801.0,43795.0,0.01119996]
[1644250572087,0.042,43800.0,43795.0,0.01119996]
[1644250572286,0.042,43799.0,43795.0,0.06119996]
[1644250572487,0.00061255,43800.0,43795.0,0.06119996]
[1644250572689,0.00090015,43800.0,43799.0,0.05]
[1644250572890,0.00061255,43800.0,43799.0,0.373987]
[1644250573489,0.0002876,43803.0,43800.0,0.323987]
[1644250573689,0.3,43817.0,43802.0,0.29832632]
[1644250573690,0.0002876,43806.0,43802.0,0.29832632]
[1644250573992,0.19358906,43808.0,43805.0,0.05]
[1644250574193,0.0002876,43807.0,43797.0,0.05]
[1644250574440,0.19358906,43808.0,43797.0,0.05]
[1644250574636,0.0002876,43807.0,43801.0,0.05]
[1644250574833,0.19142684,43808.0,43801.0,0.05]
[1644250575033,0.0002876,43807.0,43801.0,0.05]
[1644250575234,0.00061255,43804.0,43796.0,0.07645316]
[1644250575541,0.00244982,43811.0,43805.0,0.23346303]
[1644250575834,0.0184248,43815.0,43810.0,0.373987]
[1644250575835,0.00028779,43814.0,43810.0,0.373987]
[1644250576034,0.23615872,43814.0,43811.0,0.323987]
[1644250576235,0.21043669,43813.0,43810.0,0.05]
[1644250576434,0.21043669,43813.0,43805.0,0.23346303]
[1644250576636,0.21072448,43813.0,43805.0,0.0201862]
[1644250576837,0.21072448,43813.0,43806.0,1.62968251]
[1644250576838,0.00028779,43813.0,43806.0,1.62968251]
[1644250577035,0.00028779,43814.0,43808.0,0.323987]
[1644250577238,0.2934417,43820.0,43806.0,1.30569551]
[1644250577239,0.00028779,43819.0,43806.0,1.30569551]
[1644250577435,0.042,43813.0,43806.0,1.30569551]
[1644250577635,0.44372949,43820.0,43806.0,1.30569551]
[1644250577636,0.042,43812.0,43806.0,1.30569551]
[1644250578284,0.042,43812.0,43807.0,0.323987]
[1644250578489,0.042,43812.0,43810.0,0.323987]
[1644250578684,0.04228779,43812.0,43810.0,0.323987]
[1644250578884,0.042,43812.0,43810.0,0.323987]
[1644250579284,0.00028779,43813.0,43810.0,0.323987]
[1644250579488,0.48038012,43814.0,43806.0,1.30569551]
[1644250579684,0.00028779,43813.0,43808.0,0.323987]
[1644250579885,0.00061877,43813.0,43808.0,0.323987]
[1644250580086,0.00090656,43813.0,43810.0,0.323987]
[1644250580287,0.00061877,43813.0,43810.0,0.323987]
[1644250580488,0.01855097,43821.0,43811.0,0.3]
[1644250580688,0.2309185,43821.0,43809.0,0.05]
[1644250580889,0.22339903,43818.0,43809.0,0.05]
[1644250581089,0.00061877,43814.0,43809.0,0.05]
[1644250581290,0.00061877,43814.0,43812.0,0.05]
[1644250581496,0.00061877,43814.0,43813.0,0.323987]
[1644250581941,0.01942468,43822.0,43813.0,0.323987]
[1644250582135,0.01942468,43822.0,43816.0,0.05]
[1644250582532,0.01942468,43822.0,43813.0,0.24997972]
[1644250582932,0.22946501,43824.0,43813.0,0.24997972]
[1644250583132,0.25870777,43827.0,43816.0,0.05]
[1644250583331,0.05,43827.0,43816.0,0.05]
[1644250583733,0.44064136,43828.0,43817.0,0.323987]
[1644250583933,0.44064136,43828.0,43816.0,0.05]
[1644250584233,0.20695497,43825.0,43817.0,0.323987]
[1644250584632,0.0006101,43824.0,43818.0,0.00071658]
[1644250585232,0.21964616,43821.0,43818.0,0.00071658]
[1644250585538,0.21964616,43821.0,43813.0,1.78549157]
[1644250585539,0.29804741,43821.0,43813.0,1.53551185]
[1644250585789,0.3,43820.0,43818.0,0.00068246]
[1644250586091,0.323987,43819.0,43818.0,0.00068246]
[1644250586288,0.465987,43819.0,43818.0,0.00068246]
[1644250586488,0.73584396,43819.0,43818.0,0.00068246]
[1644250586687,0.73584396,43819.0,43813.0,1.53551185]
[1644250586688,0.43911729,43814.0,43813.0,1.53551185]
[1644250586890,0.73584396,43819.0,43816.0,0.0006585]
[1644250586891,0.36985696,43819.0,43816.0,0.0006585]
[1644250587088,0.365987,43818.0,43816.0,0.0006585]
[1644250587891,0.22386243,43817.0,43813.0,0.23]
[1644250588095,0.042,43816.0,43815.0,0.00065851]
[1644250588290,0.365987,43816.0,43815.0,0.00065851]
[1644250589091,0.365987,43816.0,43813.0,0.23]
[1644250589291,0.05,43815.0,43813.0,0.23065853]
[1644250589537,0.64406764,43814.0,43813.0,0.23065853]
[1644250589937,0.05,43814.0,43813.0,0.23065853]
[1644250590142,0.373987,43814.0,43813.0,0.23065853]
[1644250590336,0.042,43816.0,43813.0,0.23]
[1644250591440,0.032,43816.0,43813.0,0.23]
[1644250591937,0.323987,43815.0,43813.0,0.23]
[1644250592439,0.323987,43814.0,43813.0,0.23]
[1644250592640,0.373987,43814.0,43813.0,0.23]
[1644250592838,0.032,43816.0,43813.0,0.23]
[1644250593038,0.00113968,43814.0,43813.0,0.23]
[1644250593893,0.00113968,43814.0,43813.0,0.553987]
[1644250594491,0.00113968,43814.0,43813.0,0.23]
[1644250595091,0.32512668,43814.0,43813.0,0.23]
[1644250595294,0.37512668,43814.0,43813.0,0.23]
[1644250595692,0.00113968,43814.0,43813.0,0.23]
[1644250595892,0.05113968,43814.0,43813.0,0.23]
[1644250596191,0.00113968,43814.0,43813.0,0.23]
[1644250596393,0.00113968,43814.0,43805.0,0.01832533]
[1644250596394,0.07335044,43806.0,43805.0,0.01832533]
[1644250596592,0.11035044,43806.0,43805.0,0.01832533]
[1644250596793,0.21035044,43806.0,43805.0,0.03659524]
[1644250597043,0.21035044,43806.0,43805.0,0.01826991]
[1644250597044,0.46644964,43806.0,43805.0,0.01826991]
[1644250597244,1.3004043,43806.0,43805.0,0.01826991]
[1644250597446,1.4004043,43806.0,43805.0,0.01826991]
[1644250597947,1.4004043,43806.0,43803.0,0.00066496]
[1644250597948,0.323987,43804.0,43803.0,0.00066496]
[1644250598143,0.365987,43804.0,43803.0,0.00066496]
[1644250598346,1.02268714,43804.0,43803.0,0.00066496]
[1644250598543,0.72268714,43804.0,43803.0,0.00066496]
[1644250598746,0.06987003,43798.0,43793.0,0.26433752]
[1644250598943,0.06987003,43798.0,43787.0,0.0011]
[1644250598944,0.365987,43797.0,43787.0,0.0011]
[1644250599146,0.365987,43797.0,43791.0,0.07]
[1644250599147,0.27269841,43796.0,43791.0,0.07]
[1644250599345,0.042,43795.0,43791.0,0.07]
[1644250599548,0.020735,43800.0,43791.0,0.02]
[1644250599549,0.042,43794.0,43791.0,0.02]
[1644250599747,0.020735,43800.0,43794.0,0.45]
[1644250599944,0.23544025,43799.0,43793.0,0.05]
[1644250600145,0.042,43799.0,43797.0,0.05]
[1644250600349,0.020735,43800.0,43793.0,0.05]
[1644250600546,0.01826991,43806.0,43797.0,0.20149998]
[1644250600783,0.00028784,43801.0,43797.0,0.25149998]
[1644250600983,0.24505371,43800.0,43798.0,0.323987]
[1644250601185,0.24505371,43800.0,43793.0,0.05]
[1644250601384,0.24505371,43800.0,43797.0,0.00073114]
[1644250602084,0.22948791,43803.0,43797.0,0.00073114]
[1644250602283,0.41673968,43806.0,43795.0,0.19643157]
[1644250602485,0.00028784,43804.0,43796.0,0.00073115]
[1644250602684,0.41673968,43806.0,43796.0,0.00073115]
[1644250602988,0.00028784,43805.0,43796.0,0.00073115]
[1644250603188,0.46743868,43806.0,43796.0,0.00073115]
[1644250603189,0.365987,43804.0,43796.0,0.00073115]
[1644250603386,0.08892034,43798.0,43796.0,0.00073115]
[1644250603685,0.08892034,43798.0,43791.0,0.02]
[1644250603686,0.042,43797.0,43791.0,0.02]
[1644250603886,0.25650116,43795.0,43791.0,0.02]
[1644250604085,0.29850116,43795.0,43791.0,0.02]
[1644250604284,0.34850116,43795.0,43791.0,0.02]
[1644250605438,0.29850116,43795.0,43791.0,0.02]
[1644250605638,0.34850116,43795.0,43791.0,0.02]
[1644250605841,0.29850116,43795.0,43791.0,0.02]
[1644250606138,0.29850116,43795.0,43791.0,0.25070833]
[1644250606139,0.34850116,43795.0,43791.0,0.25070833]
[1644250606340,0.55755558,43795.0,43791.0,0.25070833]
[1644250606740,0.60755558,43795.0,43791.0,0.25070833]
[1644250607139,0.55755558,43795.0,43791.0,0.25]
[1644250607340,0.55755558,43795.0,43791.0,0.25070833]
[1644250607341,0.27336333,43794.0,43791.0,0.25070833]
[1644250607539,0.55755558,43795.0,43791.0,0.25070833]
[1644250607540,0.30498504,43792.0,43791.0,0.25070833]
[1644250607742,0.63886671,43792.0,43791.0,0.25070833]
[1644250607945,0.68086671,43792.0,43791.0,0.25070833]
[1644250608184,0.72097204,43792.0,43791.0,0.25070833]
[1644250608386,0.72097204,43792.0,43791.0,0.2281]
[1644250608387,0.82097204,43792.0,43791.0,0.2281]
[1644250608584,0.82097204,43792.0,43791.0,0.0701]
[1644250608783,0.82097204,43792.0,43791.0,0.06761521]
[1644250608982,0.72097204,43792.0,43791.0,0.06761521]
[1644250609183,0.82097204,43792.0,43791.0,0.06761521]
[1644250609382,0.67097204,43792.0,43791.0,0.06761521]
[1644250609984,0.96192031,43792.0,43791.0,0.06761521]
[1644250610686,1.01192031,43792.0,43791.0,0.06761521]
[1644250610888,1.11192031,43792.0,43791.0,0.06761521]
[1644250611085,1.01192031,43792.0,43791.0,0.06761521]
[1644250611485,0.72097204,43792.0,43791.0,0.06761521]
[1644250611939,0.99589034,43792.0,43791.0,0.06761521]
[1644250612535,1.05302534,43792.0,43791.0,0.06761521]
[1644250614036,0.99589034,43792.0,43791.0,0.06761521]
[1644250616784,1.09589034,43792.0,43791.0,0.06761521]
[1644250616985,1.25262886,43792.0,43791.0,0.06761521]
[1644250617384,1.09589034,43792.0,43791.0,0.06761521]
[1644250617686,1.15302734,43792.0,43791.0,0.06761521]
[1644250618488,0.323987,43790.0,43789.0,0.00070882]
[1644250618690,0.68108813,43790.0,43789.0,0.00070882]
[1644250618888,1.06512885,43790.0,43789.0,0.00070882]
[1644250619287,0.114289,43789.0,43787.0,0.0011]
[1644250619537,0.66682277,43788.0,43787.0,0.00180885]
[1644250620040,0.76682277,43788.0,43787.0,0.00180885]
[1644250620336,0.76682277,43788.0,43787.0,0.0011]
[1644250620535,0.92355847,43788.0,43787.0,0.0011]
[1644250621638,0.323987,43786.0,43781.0,1.31219845]
[1644250621840,0.323987,43786.0,43778.0,0.02003071]
[1644250621841,1.123987,43784.0,43778.0,0.02003071]
[1644250622040,0.042,43783.0,43778.0,0.02003071]
[1644250622237,0.53359119,43782.0,43778.0,0.02003071]
[1644250622437,0.042,43781.0,43778.0,0.02003071]
[1644250622638,0.58300799,43781.0,43778.0,0.02003071]
[1644250622838,0.76304205,43781.0,43778.0,0.02003071]
[1644250623038,0.76304205,43781.0,43778.0,0.00054049]
[1644250623484,0.82019705,43781.0,43778.0,0.00054049]
[1644250623886,0.8,43780.0,43771.0,0.04324885]
[1644250624091,0.365987,43779.0,43771.0,0.04324885]
[1644250624285,0.323987,43777.0,43771.0,0.04324885]
[1644250624487,1.123987,43775.0,43768.0,0.0022]
[1644250624690,0.06801234,43773.0,43763.0,0.0531]
[1644250624886,0.06801234,43773.0,43763.0,0.0031]
[1644250624887,0.323987,43771.0,43763.0,0.0031]
[1644250625086,0.042,43770.0,43763.0,0.0031]
[1644250625287,0.323987,43769.0,43763.0,0.0031]
[1644250625489,0.235272,43764.0,43763.0,0.0031]
[1644250625686,0.601259,43764.0,43763.0,0.0031]
[1644250625886,0.327272,43764.0,43763.0,0.0031]
[1644250626088,0.651259,43764.0,43763.0,0.0031]
[1644250626285,0.327272,43764.0,43763.0,0.0031]
[1644250626486,0.651259,43764.0,43763.0,0.0031]
[1644250626789,0.327272,43764.0,43763.0,0.0031]
[1644250627434,0.327272,43764.0,43763.0,0.2331]
[1644250627634,0.61914933,43764.0,43763.0,0.2331]
[1644250628034,0.71914933,43764.0,43763.0,0.2331]
[1644250629038,0.71914933,43764.0,43763.0,0.0031]
[1644250629839,0.8,43763.0,43762.0,0.0011]
[1644250630137,1.165987,43763.0,43762.0,0.0011]
[1644250630340,1.265987,43763.0,43762.0,0.0011]
[1644250630539,0.74326671,43763.0,43762.0,0.0011]
[1644250632194,1.05660645,43763.0,43762.0,0.0011]
[1644250632995,0.95660645,43763.0,43762.0,0.0011]
[1644250633196,1.05660645,43763.0,43762.0,0.0011]
[1644250634539,0.323987,43762.0,43761.0,0.0191]
[1644250634736,0.71627588,43762.0,43761.0,0.0191]
[1644250635139,0.01955199,43766.0,43761.0,0.0691]
[1644250635437,0.03771685,43766.0,43765.0,0.05]
[1644250635637,0.34242671,43766.0,43762.0,0.05]
[1644250635837,0.34242671,43766.0,43765.0,0.05]
[1644250636137,0.57205739,43766.0,43762.0,0.05]
[1644250636338,0.57205739,43766.0,43765.0,0.05]
[1644250637039,0.59015697,43766.0,43765.0,0.05]
[1644250637237,0.57171726,43766.0,43765.0,0.05]
[1644250637437,0.34208658,43766.0,43765.0,0.05]
[1644250637837,0.01809958,43766.0,43765.0,0.05]
[1644250638036,0.01809958,43766.0,43763.0,0.00073386]
[1644250638291,0.01809958,43766.0,43763.0,0.05073386]
[1644250638490,0.323987,43765.0,43763.0,0.05]
[1644250638689,0.057174,43764.0,43761.0,0.0691]
[1644250638890,0.24008984,43766.0,43761.0,0.0691]
[1644250639090,0.22199026,43766.0,43764.0,0.05]
[1644250639290,0.323987,43765.0,43764.0,0.05]
[1644250639496,0.323987,43768.0,43764.0,0.05]
[1644250639696,0.323987,43768.0,43767.0,0.05]
[1644250640293,0.107168,43768.0,43763.0,0.17]
[1644250640495,0.323987,43767.0,43763.0,0.17]
[1644250641195,0.323987,43767.0,43766.0,0.05]
[1644250641594,0.02008956,43770.0,43766.0,0.05]
[1644250641796,0.323987,43769.0,43766.0,0.05]
[1644250642037,0.02008956,43770.0,43766.0,0.05]
[1644250642836,0.02008956,43770.0,43765.0,0.00073441]
[1644250642837,0.34231999,43767.0,43765.0,0.00073441]
[1644250643036,0.323987,43766.0,43765.0,0.00073441]
[1644250643236,0.323987,43766.0,43763.0,0.22]
[1644250643437,0.323987,43766.0,43764.0,0.00073443]
[1644250643738,0.5357758,43766.0,43764.0,0.00073443]
[1644250644538,0.5357758,43766.0,43763.0,0.22]
[1644250644741,0.5357758,43766.0,43763.0,0.22073445]
[1644250645540,0.057169,43765.0,43763.0,0.17073445]
[1644250645784,0.057169,43765.0,43763.0,0.17]
[1644250645785,0.323987,43764.0,43763.0,0.17]
[1644250645985,0.323987,43764.0,43763.0,0.16786632]
[1644250646184,0.373987,43764.0,43763.0,0.16786632]
[1644250646688,0.59039853,43764.0,43763.0,0.16786632]
[1644250647487,0.05,43764.0,43763.0,0.21786632]
[1644250647885,0.01940031,43767.0,43763.0,0.21786632]
[1644250648085,0.01940031,43767.0,43766.0,0.05]
[1644250648488,0.34338731,43767.0,43766.0,0.05]
[1644250648888,0.06940031,43767.0,43766.0,0.05]
[1644250649086,0.34338731,43767.0,43766.0,0.05]
[1644250649288,0.323987,43767.0,43766.0,0.05]
[1644250649541,0.373987,43767.0,43766.0,0.05]
[1644250650341,0.323987,43767.0,43766.0,0.05]
[1644250650542,0.323987,43767.0,43763.0,0.21786632]
[1644250650741,0.323987,43770.0,43766.0,0.05]
[1644250650941,0.34457021,43770.0,43766.0,0.05]
[1644250651545,0.34457021,43770.0,43769.0,0.05]
[1644250651741,0.34457021,43770.0,43765.0,0.05]
[1644250651943,0.34457021,43770.0,43766.0,0.00073498]
[1644250652343,0.323987,43769.0,43766.0,0.00073498]
[1644250652944,0.323987,43769.0,43765.0,0.05]
[1644250653184,0.323987,43769.0,43765.0,0.05073499]
[1644250653386,0.380875,43769.0,43765.0,0.05073499]
[1644250653584,0.480875,43769.0,43765.0,0.00073499]